No of Transactions,Dept_Family,Entity_Name,Cert Date,Supplier Name,Reference,Gross Amt,Group/Department,Type of Expenditure - Subjective Codes
1,DCMS,Historic England,22/03/2024,(A) Property Sales Ltd and Siege of,82006558,"77,679.00",Regions Group-South West - RD,Grants Historic Buildings
2,DCMS,Historic England,12/03/2024,Amber Valley Borough Council,90516726,"13,216.00",Regions Group-Midlands - RD,Grants Capacity Building Grants
3,DCMS,Historic England,12/03/2024,Amber Valley Borough Council,90516726,"26,299.37",Regions Group-Midlands - RD,Grants Capacity Building Grants
4,DCMS,Historic England,25/03/2024,Barnsley Metropolitan Borough Council,82006568,"27,500.00",Regions Group-North East & Yorkshire - RD,Grants Historic Buildings
5,DCMS,Historic England,27/03/2024,Barnstaple Town Council,82006590,"65,173.00",Regions Group-South West - RD,Grants Historic Buildings
6,DCMS,Historic England,27/03/2024,Barnstaple Town Council,82006591,"65,173.00",Regions Group-South West - RD,Grants Historic Buildings
7,DCMS,Historic England,28/03/2024,BCP Council,83002375,"26,885.00",Regions Group-High Str (HAZ) - Regions,Grants Area
8,DCMS,Historic England,18/03/2024,Beckford Tower Trust,82006524,"50,000.00",Regions Group-South West - RD,Grants Historic Buildings
9,DCMS,Historic England,27/03/2024,Beckford Tower Trust,82006586,"40,000.00",Regions Group-South West - RD,Grants Historic Buildings
10,DCMS,Historic England,28/03/2024,Blackpool Council,82006599,"25,336.00",Regions Group-North West - RD,Grants Historic Buildings
11,DCMS,Historic England,11/03/2024,"BNP Paribas Real Estate, Rent / Services",42006472,"2,630.50",Governance & Legal-Office Estate,Insurance
12,DCMS,Historic England,11/03/2024,"BNP Paribas Real Estate, Rent / Services",42006472,"278,236.75",Governance & Legal-Office Estate,Rent Payable (Building)
13,DCMS,Historic England,11/03/2024,"BNP Paribas Real Estate, Rent / Services",42006473,"114,453.58",Governance & Legal-Office Estate,Building Service Charges
14,DCMS,Historic England,26/03/2024,"BNP Paribas Real Estate, Rent / Services",42006974,"-29,624.06",Governance & Legal-Office Estate,Building Service Charges
15,DCMS,Historic England,28/03/2024,Bristol City Council,82006600,"25,602.00",Regions Group-South West - RD,Grants Historic Buildings
16,DCMS,Historic England,25/03/2024,British Tourist Authority,83002360,"30,000.00",Business Improvement-Programmes,Grants Other Grants
17,DCMS,Historic England,18/03/2024,Canal & River Trust No 1,82006530,"132,974.00",Regions Group-Midlands - RD,Grants Historic Buildings
18,DCMS,Historic England,11/03/2024,Caring for God's Acre,81007058,"27,000.00",Business Improvement-Grants,Grants Capacity Building Grants
19,DCMS,Historic England,05/03/2024,CDW UK,42005976,"88,449.60",Corporate Services-IMT,Computer Equipment > 10k
20,DCMS,Historic England,20/03/2024,CDW UK,42006581,"138,394.37",Corporate Services-IMT,Network Contracts
21,DCMS,Historic England,14/03/2024,Chartered Institute for Archaeologists,81007085,"27,000.00",Business Improvement-Grants,Grants Historic Environment
22,DCMS,Historic England,28/03/2024,City of Bradford Metropolitan District,90516772,"50,000.00",Regions Group-North East & Yorkshire - RD,Grants Capacity Building Grants
23,DCMS,Historic England,26/03/2024,Colena Ltd trading as Heliguy,42006938,"26,383.70",Policy & Evidence-National Specialist Services,Plant & Equipment > 10k
24,DCMS,Historic England,27/03/2024,COPTRZ,42007030,"43,050.32",Policy & Evidence-National Specialist Services,Plant & Equipment > 10k
25,DCMS,Historic England,27/03/2024,COPTRZ,42007030,"9,878.29",Policy & Evidence-National Specialist Services,Plant & Equipment > 10k
26,DCMS,Historic England,27/03/2024,COPTRZ,42007030,"2,067.96",Policy & Evidence-National Specialist Services,Plant & Equipment > 10k
27,DCMS,Historic England,27/03/2024,COPTRZ,42007030,750,Policy & Evidence-National Specialist Services,Plant & Equipment > 10k
28,DCMS,Historic England,27/03/2024,COPTRZ,42007030,96,Policy & Evidence-National Specialist Services,Plant & Equipment > 10k
29,DCMS,Historic England,15/03/2024,Council British Arch York,81007089,"30,000.00",Business Improvement-Grants,Grants Historic Environment
30,DCMS,Historic England,20/03/2024,Croft Building and Conservation Ltd,42006688,"29,222.02",Shrewsbury Flax Mill Maltings-Shrewsbury Flax Mill Maltings,Works (Non Office)
31,DCMS,Historic England,20/03/2024,Croft Building and Conservation Ltd,42006689,"54,000.00",Shrewsbury Flax Mill Maltings-Shrewsbury Flax Mill Maltings,Works (Non Office)
32,DCMS,Historic England,21/03/2024,Cultural Associates Oxford,42006655,"37,500.00",Policy & Evidence-Policy & Evidence Centre,Bought in Research
33,DCMS,Historic England,21/03/2024,Cultural Associates Oxford,42006813,"-37,500.00",Policy & Evidence-Policy & Evidence Centre,Bought in Research
34,DCMS,Historic England,27/03/2024,Cumberland Council,83002369,"35,000.00",Public Engagement-High Str (HAZ) - Public Engag,Grants Other Grants
35,DCMS,Historic England,18/03/2024,Darlington Borough Council,82006526,"75,600.00",Regions Group-North East & Yorkshire - RD,Grants Historic Buildings
36,DCMS,Historic England,27/03/2024,Dunstable Town Council,82006588,"127,349.00",Regions Group-East - RD,Grants Historic Buildings
37,DCMS,Historic England,26/03/2024,EDF  ,30001684,"38,344.36",Corporate Services-Facilities Management,Electricity
38,DCMS,Historic England,18/03/2024,Edit Branding Ltd,42006441,"29,088.00","Public Engagement-Content, Digital & Marketing",Creative Production
39,DCMS,Historic England,26/03/2024,Edit Branding Ltd,42007031,"29,088.00","Public Engagement-Content, Digital & Marketing",Creative Production
40,DCMS,Historic England,27/03/2024,EKOS Consulting (UK) Ltd. t/a Ekosgen,42007045,"27,948.00",Policy & Evidence-Policy & Evidence Centre,Bought in Research
41,DCMS,Historic England,08/03/2024,Emergency Exit Arts Ltd,83002348,"35,993.00",Public Engagement-High Str (HAZ) - Public Engag,Technical & Legal Advice External Technical Advice
42,DCMS,Historic England,26/03/2024,English Heritage Trust,83002363,"250,000.00",Regions Group-London & South East - RD,Grants Historic Buildings
43,DCMS,Historic England,05/03/2024,ESRI (UK) Ltd,42006093,"282,000.00",Corporate Services-IMT,Software Maintenance
44,DCMS,Historic England,08/03/2024,Evesham Town Council,82006517,"28,800.00",Regions Group-Midlands - RD,Grants Historic Buildings
45,DCMS,Historic England,22/03/2024,Forest of Dean Bdgs Preservation Trust,82006552,"49,143.00",Regions Group-South West - RD,Grants Historic Buildings
46,DCMS,Historic England,26/03/2024,G2 Survey Ltd,42006880,"45,168.40",Policy & Evidence-National Specialist Services,Plant & Equipment > 10k
47,DCMS,Historic England,26/03/2024,G2 Survey Ltd,42006880,"2,462.00",Policy & Evidence-National Specialist Services,Plant & Equipment > 10k
48,DCMS,Historic England,08/03/2024,General Cemetery Company,82006513,"183,697.00",Regions Group-London & South East - RD,Grants Historic Buildings
49,DCMS,Historic England,13/03/2024,General Cemetery Company,82006522,"35,506.00",Regions Group-London & South East - RD,Grants Historic Buildings
50,DCMS,Historic England,20/03/2024,General Cemetery Company,82006536,"146,958.00",Regions Group-London & South East - RD,Grants Historic Buildings
51,DCMS,Historic England,25/03/2024,Gloucester City Council,82006566,"55,040.00",Regions Group-South West - RD,Grants Historic Buildings
52,DCMS,Historic England,19/03/2024,Gosport Borough Council,90516737,"18,437.90",Regions Group-London & South East - RD,Grants Capacity Building Grants
53,DCMS,Historic England,19/03/2024,Gosport Borough Council,90516737,"9,246.10",Regions Group-London & South East - RD,Grants Capacity Building Grants
54,DCMS,Historic England,12/03/2024,Government Internal Audit Agency,42006243,"51,097.50",Governance & Legal-Governance & Legal Department,Bought in Advice
55,DCMS,Historic England,28/03/2024,Government Internal Audit Agency,42007196,"51,097.50",Governance & Legal-Governance & Legal Department,Bought in Advice
56,DCMS,Historic England,06/03/2024,Great Yarmouth Borough Council,82006504,"38,233.00",Regions Group-East - RD,Grants Historic Buildings
57,DCMS,Historic England,14/03/2024,GTT-EMEA Ltd,42006449,"34,730.13",Corporate Services-IMT,Network Contracts
58,DCMS,Historic England,14/03/2024,GTT-EMEA Ltd,42006449,"12,000.01",Corporate Services-IMT,Network Contracts
59,DCMS,Historic England,14/03/2024,GTT-EMEA Ltd,42006450,"-12,000.01",Corporate Services-IMT,Network Contracts
60,DCMS,Historic England,07/03/2024,Hable Education Ltd,42006348,"60,000.00",Corporate Services-IMT,Training (HE Staff)
61,DCMS,Historic England,20/03/2024,Harlow Consulting Services Limited,42006659,"29,214.00",Policy & Evidence-Policy & Evidence Centre,Bought in Research
62,DCMS,Historic England,27/03/2024,Harvey's Foundry Trust,82006585,"76,230.00",Regions Group-South West - RD,Grants Historic Buildings
63,DCMS,Historic England,08/03/2024,Hastings Commons CLT,83002347,"60,047.00",Regions Group-High Str (HAZ) - Regions,Grants Area
64,DCMS,Historic England,07/03/2024,Herefordshire Council,83002346,"85,011.00",Regions Group-High Str (HAZ) - Regions,Grants Area
65,DCMS,Historic England,06/03/2024,Heritage Trust of Lincolnshire,90516710,"37,120.00",Regions Group-Midlands - RD,Grants Capacity Building Grants
66,DCMS,Historic England,12/03/2024,Historic Chapels Trust,81007068,"109,642.00",Business Improvement-Grants,Grants Capacity Building Grants
67,DCMS,Historic England,12/03/2024,Hull City Council,81007066,"30,000.00",Business Improvement-Grants,Grants Historic Environment
68,DCMS,Historic England,26/03/2024,Huq Industries Limited,42006680,"42,000.00",Policy & Evidence-Analytics,Bought in Research
69,DCMS,Historic England,18/03/2024,Isle of Wight Council,82006532,"114,000.00",Regions Group-London & South East - RD,Grants Historic Buildings
70,DCMS,Historic England,18/03/2024,Isle of Wight Council,82006533,"45,600.00",Regions Group-London & South East - RD,Grants Historic Buildings
71,DCMS,Historic England,26/03/2024,Kantar Public UK Limited t/a Verian,42006964,"143,640.00",Policy & Evidence-High Str (HAZ) - Policy & Evid,Bought in Research
72,DCMS,Historic England,26/03/2024,Kantar Public UK Limited t/a Verian,42006965,"48,000.00",Policy & Evidence-High Str (HAZ) - Policy & Evid,Bought in Research
73,DCMS,Historic England,18/03/2024,King Arthur's Halls Ltd,82006528,"41,301.00",Regions Group-South West - RD,Grants Historic Buildings
74,DCMS,Historic England,27/03/2024,Korec,42007042,"69,400.80",Policy & Evidence-National Specialist Services,Plant & Equipment > 10k
75,DCMS,Historic England,13/03/2024,London Borough of Bromley,82006523,"200,000.00",Regions Group-London & South East - RD,Grants Historic Buildings
76,DCMS,Historic England,25/03/2024,London Borough of Hounslow,82006560,"76,161.00",Regions Group-London & South East - RD,Grants Historic Buildings
77,DCMS,Historic England,18/03/2024,London Parks and Gardens Trust,90516732,"25,610.00",Regions Group-London & South East - RD,Grants Capacity Building Grants
78,DCMS,Historic England,07/03/2024,Medway Council,83002345,"50,768.00",Regions Group-High Str (HAZ) - Regions,Grants Area
79,DCMS,Historic England,11/03/2024,Method4 Ltd,42006291,"37,425.00","Public Engagement-Content, Digital & Marketing",System Developments <50k
80,DCMS,Historic England,28/03/2024,Method4 Ltd,42007209,975.6,"Public Engagement-Content, Digital & Marketing",System Developments <50k
81,DCMS,Historic England,28/03/2024,Method4 Ltd,42007209,"48,000.00","Public Engagement-Content, Digital & Marketing",System Developments <50k
82,DCMS,Historic England,28/03/2024,Method4 Ltd,42007209,"21,600.00","Public Engagement-Content, Digital & Marketing",System Developments <50k
83,DCMS,Historic England,20/03/2024,Wenlock Abbey,82006537,"33,855.00",Regions Group-Midlands - RD,Grants Historic Buildings
84,DCMS,Historic England,27/03/2024,National Audit Office,42006911,"48,750.00",Corporate Services-Finance & Procurement Dept,Audit Fee
85,DCMS,Historic England,07/03/2024,Norfolk County Council,81007043,"40,000.00",Business Improvement-Grants,Grants Historic Environment
86,DCMS,Historic England,06/03/2024,Norfolk County Council,82006506,"60,718.00",Regions Group-East - RD,Grants Historic Buildings
87,DCMS,Historic England,20/03/2024,Norfolk County Council,82006544,"47,150.00",Regions Group-East - RD,Grants Historic Buildings
88,DCMS,Historic England,06/03/2024,North East Lincolnshire,82006508,"136,000.00",Regions Group-Midlands - RD,Grants Historic Buildings
89,DCMS,Historic England,08/03/2024,North East Lincolnshire,90516720,"40,002.00",Regions Group-Midlands - RD,Grants Area
90,DCMS,Historic England,27/03/2024,North East Lincolnshire,90516765,"240,063.56",Regions Group-Midlands - RD,Grants Area
91,DCMS,Historic England,18/03/2024,North Northamptonshire Council,81007095,"28,019.00",Business Improvement-Grants,Grants Historic Environment
92,DCMS,Historic England,27/03/2024,North Somerset Council,82006569,"280,000.00",Regions Group-South West - RD,Grants Historic Buildings
93,DCMS,Historic England,25/03/2024,Qnetix Ltd,42006662,"72,000.00",Corporate Services-IMT,Hosting
94,DCMS,Historic England,07/03/2024,Ratcliffes,42006420,"47,083.40",Governance & Legal-Office Estate,Insurance
95,DCMS,Historic England,18/03/2024,Ratcliffes,42006552,"307,500.00",Governance & Legal-Office Estate,Rent Payable (Building)
96,DCMS,Historic England,26/03/2024,Rochdale Borough Council,90516756,"48,252.00",Regions Group-North West - RD,Grants Area
97,DCMS,Historic England,25/03/2024,S8080 Limited,42006885,"59,950.80",Corporate Services-IMT,WIP Systems Development
98,DCMS,Historic England,27/03/2024,Sandwell MBC,82006581,"47,624.00",Regions Group-Midlands - RD,Grants Historic Buildings
99,DCMS,Historic England,06/03/2024,Savills (UK) Ltd,42006374,"61,416.90",Governance & Legal-Office Estate,Rent Payable (Building)
100,DCMS,Historic England,06/03/2024,Savills (UK) Ltd,42006374,"9,868.80",Governance & Legal-Office Estate,Building Service Charges
101,DCMS,Historic England,06/03/2024,Savills (UK) Ltd,42006374,"1,164.43",Governance & Legal-Office Estate,Building Service Charges
102,DCMS,Historic England,22/03/2024,Shropshire Council,82006547,"133,650.00",Regions Group-Midlands - RD,Grants Historic Buildings
103,DCMS,Historic England,20/03/2024,Shropshire Council,90516739,"16,044.21",Regions Group-Midlands - RD,Grants Capacity Building Grants
104,DCMS,Historic England,20/03/2024,Shropshire Council,90516739,"5,435.24",Regions Group-Midlands - RD,Grants Capacity Building Grants
105,DCMS,Historic England,20/03/2024,Shropshire Council,90516739,"9,189.53",Regions Group-Midlands - RD,Grants Capacity Building Grants
106,DCMS,Historic England,01/03/2024,SoftwareOne UK Ltd,42005828,"108,541.63",Corporate Services-IMT,Hosting
107,DCMS,Historic England,25/03/2024,SoftwareOne UK Ltd,42006330,"105,097.04",Corporate Services-IMT,Hosting
108,DCMS,Historic England,25/03/2024,SoftwareOne UK Ltd,42006694,"779,870.26",Corporate Services-IMT,Software Maintenance
109,DCMS,Historic England,28/03/2024,SoftwareOne UK Ltd,42007172,"118,522.06",Corporate Services-IMT,Hosting
110,DCMS,Historic England,20/03/2024,Somerset Council,82006539,"28,075.00",Regions Group-South West - RD,Grants Historic Buildings
111,DCMS,Historic England,22/03/2024,Spitalfields Hist Buildings Trust,82006550,"76,856.00",Regions Group-London & South East - RD,Grants Historic Buildings
112,DCMS,Historic England,20/03/2024,SQW Limited,42006768,"53,311.20",Regions Group-Regions Group Centre,Bought in Research
113,DCMS,Historic England,22/03/2024,St Thomas Parochial Church Council,82006554,"77,976.00",Regions Group-London & South East - RD,Grants Historic Buildings
114,DCMS,Historic England,27/03/2024,Stoke-on-Trent City Council,90516764,"2,156.00",Regions Group-Midlands - RD,Grants Capacity Building Grants
115,DCMS,Historic England,27/03/2024,Stoke-on-Trent City Council,90516764,"152,600.00",Regions Group-Midlands - RD,Grants Capacity Building Grants
116,DCMS,Historic England,27/03/2024,Storm ID Ltd,42006921,"40,140.00",Corporate Services-IMT,WIP Systems Development
117,DCMS,Historic England,27/03/2024,Storm ID Ltd,42006923,"85,200.00",Corporate Services-IMT,WIP Systems Development
118,DCMS,Historic England,22/03/2024,Swindon Borough Council,82006551,"100,000.00",Regions Group-South West - RD,Grants Historic Buildings
119,DCMS,Historic England,27/03/2024,Swindon Borough Council,82006578,"80,000.00",Regions Group-South West - RD,Grants Historic Buildings
120,DCMS,Historic England,27/03/2024,Swindon Borough Council,82006587,"34,229.00",Regions Group-South West - RD,Grants Historic Buildings
121,DCMS,Historic England,11/03/2024,Swindon Borough Council,90516725,"42,200.00",Regions Group-South West - RD,Grants Capacity Building Grants
122,DCMS,Historic England,19/03/2024,Swindon Borough Council,90516734,"41,270.50",Regions Group-South West - RD,Grants Area
123,DCMS,Historic England,19/03/2024,Swindon Borough Council,90516735,"30,786.00",Regions Group-South West - RD,Grants Area
124,DCMS,Historic England,27/03/2024,Swindon Borough Council,90516766,"57,645.00",Regions Group-South West - RD,Grants Area
125,DCMS,Historic England,18/03/2024,T Coleborn & Son Ltd,42006558,"48,679.98",Policy & Evidence-National Specialist Services,Repairs
126,DCMS,Historic England,18/03/2024,T Coleborn & Son Ltd,42006558,"5,967.80",Policy & Evidence-National Specialist Services,Repairs
127,DCMS,Historic England,11/03/2024,The Architectural Heritage Fund,81007052,"508,000.00",Business Improvement-Grants,Grants Capacity Building Grants
128,DCMS,Historic England,14/03/2024,The Architectural Heritage Fund,81007081,"147,866.00",Business Improvement-Grants,Grants Capacity Building Grants
129,DCMS,Historic England,12/03/2024,The Arts Council of England,83002349,"56,681.00",Business Improvement-Programmes,Grants Other Grants
130,DCMS,Historic England,18/03/2024,The Arts Council of England,83002354,"74,962.00",Business Improvement-Programmes,Grants Other Grants
131,DCMS,Historic England,20/03/2024,The Churches Conservation Trust,42006718,"34,241.91",Public Engagement-Public Relations & Programmes,Programme Grants
132,DCMS,Historic England,27/03/2024,The Education Hub Group Ltd,42007105,"12,750.00",Corporate Services-Human Resources,Recruitment
133,DCMS,Historic England,27/03/2024,The Education Hub Group Ltd,42007105,"12,750.00",Corporate Services-Human Resources,Recruitment
134,DCMS,Historic England,27/03/2024,The Education Hub Group Ltd,42007105,"12,750.00",Corporate Services-Human Resources,Recruitment
135,DCMS,Historic England,06/03/2024,The Harwich Society,82006507,"29,803.00",Regions Group-East - RD,Grants Historic Buildings
136,DCMS,Historic England,11/03/2024,The Heritage Alliance,81007054,"26,587.81",Business Improvement-Grants,Grants Capacity Building Grants
137,DCMS,Historic England,13/03/2024,The Heritage Alliance,81007071,"38,719.19",Business Improvement-Grants,Grants Capacity Building Grants
138,DCMS,Historic England,13/03/2024,The Historical Diving Society,82006518,"144,065.00",Regions Group-London & South East - RD,Grants Historic Buildings
139,DCMS,Historic England,27/03/2024,The Lupton Trust,82006582,"40,806.00",Regions Group-South West - RD,Grants Historic Buildings
140,DCMS,Historic England,06/03/2024,Torbay Council,90516715,"42,400.00",Regions Group-South West - RD,Grants Capacity Building Grants
141,DCMS,Historic England,22/03/2024,Tullie House Museum & Art Gallery Trust,82006555,"35,073.00",Regions Group-North West - RD,Grants Historic Buildings
142,DCMS,Historic England,22/03/2024,Ushaw College,82006557,"200,170.00",Regions Group-North East & Yorkshire - RD,Grants Historic Buildings
143,DCMS,Historic England,06/03/2024,Wentworth Woodhouse Preservation Trust,82006505,"150,000.00",Regions Group-North East & Yorkshire - RD,Grants Historic Buildings
144,DCMS,Historic England,08/03/2024,Wentworth Woodhouse Preservation Trust,82006515,"132,119.00",Regions Group-North East & Yorkshire - RD,Grants Historic Buildings
145,DCMS,Historic England,27/03/2024,Wentworth Woodhouse Preservation Trust,82006584,"158,542.00",Regions Group-North East & Yorkshire - RD,Grants Historic Buildings
146,DCMS,Historic England,25/03/2024,West Lancashire Borough Council,83002361,"40,000.00",Public Engagement-High Str (HAZ) - Public Engag,Grants Other Grants
147,DCMS,Historic England,20/03/2024,West Midlands Historic Buildings Trust,82006542,"150,000.00",Regions Group-Midlands - RD,Grants Historic Buildings
148,DCMS,Historic England,06/03/2024,Wiltshire Council,90516714,"36,797.00",Regions Group-South West - RD,Grants Capacity Building Grants
149,DCMS,Historic England,25/03/2024,Worksop Priory and Gatehouse,82006565,"46,972.00",Regions Group-Midlands - RD,Grants Historic Buildings
150,DCMS,Historic England,04/03/2024,XMA Limited,42006184,"89,632.92",Corporate Services-IMT,End User Contracts
151,DCMS,Historic England,25/03/2024,XMA Limited,42006731,"89,632.92",Corporate Services-IMT,End User Contracts
